[Event "Late-Titled-Tuesday-Blitz-March-19-2024"]
[Site "Chess.com"]
[Date "2024.03.19"]
[Round "5"]
[White "Firouzja2003"]
[Black "atbenina64"]
[Result "1-0"]
[WhiteElo "3093"]
[BlackElo "2735"]
[TimeControl "180+1"]
[EndTime "14:55:24 PDT"]
[Termination "Firouzja2003 won on time"]

1. Nf3 {[%clk 0:02:55.9]} 1... Nf6 {[%clk 0:03:00.1]} 2. g3 {[%clk 0:02:56.1]}
2... d5 {[%clk 0:03:00.6]} 3. Bg2 {[%clk 0:02:56.4]} 3... Bg4 {[%clk 0:03:01.3]}
4. h3 {[%clk 0:02:52.4]} 4... Bh5 {[%clk 0:02:59]} 5. d4 {[%clk 0:02:50.6]} 5...
e6 {[%clk 0:02:55]} 6. O-O {[%clk 0:02:49.8]} 6... Nbd7 {[%clk 0:02:52.6]} 7. c4
{[%clk 0:02:49.5]} 7... c6 {[%clk 0:02:51.3]} 8. cxd5 {[%clk 0:02:48.5]} 8...
exd5 {[%clk 0:02:51.6]} 9. Qb3 {[%clk 0:02:48.2]} 9... Qb6 {[%clk 0:02:44.9]}
10. Qe3+ {[%clk 0:02:47.8]} 10... Be7 {[%clk 0:02:44.9]} 11. Nh4 {[%clk
0:02:48.5]} 11... Bg6 {[%clk 0:02:44.1]} 12. Nc3 {[%clk 0:02:47.9]} 12... Nf8
{[%clk 0:02:43]} 13. Na4 {[%clk 0:02:43.2]} 13... Qc7 {[%clk 0:02:10.4]} 14. Nc5
{[%clk 0:02:42.4]} 14... b6 {[%clk 0:02:09.1]} 15. Nd3 {[%clk 0:02:40]} 15...
Ne6 {[%clk 0:02:05.6]} 16. Nxg6 {[%clk 0:02:35.2]} 16... hxg6 {[%clk 0:02:06.5]}
17. Bd2 {[%clk 0:02:26.2]} 17... O-O {[%clk 0:01:50.1]} 18. Rac1 {[%clk
0:02:25.2]} 18... Bd6 {[%clk 0:01:40.8]} 19. Nb4 {[%clk 0:02:16.8]} 19... Bxb4
{[%clk 0:01:30.1]} 20. Bxb4 {[%clk 0:02:17.7]} 20... Rfe8 {[%clk 0:01:30.9]} 21.
Qd3 {[%clk 0:02:05.7]} 21... Qd7 {[%clk 0:01:29.1]} 22. h4 {[%clk 0:02:02.5]}
22... g5 {[%clk 0:01:28.3]} 23. hxg5 {[%clk 0:01:54.1]} 23... Nxg5 {[%clk
0:01:29.2]} 24. Bd2 {[%clk 0:01:53.9]} 24... Nh3+ {[%clk 0:01:21.4]} 25. Kh1
{[%clk 0:01:48.4]} 25... Ne4 {[%clk 0:01:17.4]} 26. Be3 {[%clk 0:01:40.8]} 26...
g6 {[%clk 0:01:00.6]} 27. Bxe4 {[%clk 0:00:42]} 27... Rxe4 {[%clk 0:00:53.2]}
28. Kg2 {[%clk 0:00:42.3]} 28... Kg7 {[%clk 0:00:33.3]} 29. Rh1 {[%clk
0:00:39.9]} 29... Rh8 {[%clk 0:00:33.5]} 30. Rh2 {[%clk 0:00:23.9]} 30... g5
{[%clk 0:00:12.6]} 31. f3 {[%clk 0:00:17.6]} 31... Re7 {[%clk 0:00:07.5]} 32.
Rch1 {[%clk 0:00:18.1]} 32... g4 {[%clk 0:00:07]} 33. fxg4 {[%clk 0:00:14.7]}
33... Qxg4 {[%clk 0:00:06.4]} 34. Rxh3 {[%clk 0:00:13.3]} 34... Rxh3 {[%clk
0:00:03.2]} 35. Rxh3 {[%clk 0:00:14.2]} 35... f5 {[%clk 0:00:02.6]} 36. Rh4
{[%clk 0:00:13.8]} 36... Qg6 {[%clk 0:00:02.5]} 37. Rf4 {[%clk 0:00:12.9]} 37...
Rf7 {[%clk 0:00:01.1]} 38. Rf3 {[%clk 0:00:12.9]} 38... c5 {[%clk 0:00:01.2]}
39. dxc5 {[%clk 0:00:12.8]} 39... bxc5 {[%clk 0:00:01.6]} 40. Bxc5 {[%clk
0:00:13.7]} 1-0

[Event "Late-Titled-Tuesday-Blitz-March-19-2024"]
[Site "Chess.com"]
[Date "2024.03.19"]
[Round "5"]
[White "Misterfox120"]
[Black "santosalberto1987"]
[Result "1-0"]
[WhiteElo "2463"]
[BlackElo "2552"]
[TimeControl "180+1"]
[EndTime "14:55:24 PDT"]
[Termination "Misterfox120 won by resignation"]

1. d4 {[%clk 0:03:00.9]} 1... Nf6 {[%clk 0:02:59.8]} 2. Bf4 {[%clk 0:03:01.1]}
2... g6 {[%clk 0:02:59.4]} 3. Nc3 {[%clk 0:03:00.6]} 3... d5 {[%clk 0:02:56.3]}
4. e3 {[%clk 0:03:00.9]} 4... Bg7 {[%clk 0:02:56.3]} 5. Nb5 {[%clk 0:03:01.4]}
5... Na6 {[%clk 0:02:53.2]} 6. Nc3 {[%clk 0:03:01.9]} 6... Nb8 {[%clk
0:02:47.2]} 7. Nb5 {[%clk 0:03:01.7]} 7... Na6 {[%clk 0:02:46.7]} 8. Nc3 {[%clk
0:03:02.2]} 8... O-O {[%clk 0:02:42.4]} 9. Bxa6 {[%clk 0:03:02.4]} 9... bxa6
{[%clk 0:02:43.3]} 10. Be5 {[%clk 0:03:03.3]} 10... Bf5 {[%clk 0:02:39.5]} 11.
Nge2 {[%clk 0:02:42.1]} 11... Rb8 {[%clk 0:02:35.1]} 12. b3 {[%clk 0:02:32.1]}
12... Ne4 {[%clk 0:02:31]} 13. Bxg7 {[%clk 0:02:33]} 13... Kxg7 {[%clk 0:02:31]}
14. Nxe4 {[%clk 0:02:32]} 14... Bxe4 {[%clk 0:02:30.6]} 15. O-O {[%clk
0:02:29.7]} 15... Qd6 {[%clk 0:02:28]} 16. Ng3 {[%clk 0:02:27.5]} 16... Bf5
{[%clk 0:02:27.4]} 17. Nxf5+ {[%clk 0:02:26.8]} 17... gxf5 {[%clk 0:02:28.3]}
18. Qd3 {[%clk 0:02:26.2]} 18... e6 {[%clk 0:02:28.3]} 19. g3 {[%clk 0:02:06.2]}
19... a5 {[%clk 0:02:27.7]} 20. a4 {[%clk 0:02:01.3]} 20... c5 {[%clk
0:02:27.2]} 21. Rac1 {[%clk 0:01:36.4]} 21... Rfc8 {[%clk 0:02:24.3]} 22. Rfd1
{[%clk 0:01:32.4]} 22... Rb4 {[%clk 0:02:19]} 23. c4 {[%clk 0:01:20.3]} 23...
dxc4 {[%clk 0:02:01.2]} 24. Rxc4 {[%clk 0:01:18.3]} 24... Rxc4 {[%clk
0:01:05.5]} 25. Qxc4 {[%clk 0:01:19.2]} 25... Rc7 {[%clk 0:00:59.9]} 26. Rc1
{[%clk 0:01:12.5]} 26... Qb6 {[%clk 0:00:47.4]} 27. dxc5 {[%clk 0:01:10.7]}
27... Qc6 {[%clk 0:00:47.7]} 28. Qc3+ {[%clk 0:01:10.8]} 28... Kg8 {[%clk
0:00:43.7]} 29. Qxa5 {[%clk 0:01:11]} 29... Rb7 {[%clk 0:00:43.8]} 30. b4 {[%clk
0:01:01.2]} 30... Rd7 {[%clk 0:00:41.6]} 31. b5 {[%clk 0:00:58.1]} 31... Qf3
{[%clk 0:00:41.4]} 32. c6 {[%clk 0:00:31.2]} 32... Rd1+ {[%clk 0:00:40.3]} 33.
Rxd1 {[%clk 0:00:31.1]} 33... Qxd1+ {[%clk 0:00:41.2]} 34. Kg2 {[%clk
0:00:31.5]} 34... Qd5+ {[%clk 0:00:42.1]} 35. Kh3 {[%clk 0:00:19.1]} 35... Qd1
{[%clk 0:00:22.4]} 36. c7 {[%clk 0:00:07.9]} 36... Qf1+ {[%clk 0:00:18.9]} 37.
Kh4 {[%clk 0:00:07.5]} 37... Qc4+ {[%clk 0:00:19.5]} 38. f4 {[%clk 0:00:05.5]}
38... Qc2 {[%clk 0:00:19.2]} 39. h3 {[%clk 0:00:04.6]} 39... Kg7 {[%clk
0:00:18.7]} 40. Qxa7 {[%clk 0:00:03]} 40... Qc3 {[%clk 0:00:17.8]} 41. Qd4+
{[%clk 0:00:03.1]} 41... Qxd4 {[%clk 0:00:18.1]} 42. exd4 {[%clk 0:00:04]} 1-0

[Event "Late-Titled-Tuesday-Blitz-March-19-2024"]
[Site "Chess.com"]
[Date "2024.03.19"]
[Round "5"]
[White "jocmil"]
[Black "subham777"]
[Result "0-1"]
[WhiteElo "2729"]
[BlackElo "2540"]
[TimeControl "180+1"]
[EndTime "14:55:25 PDT"]
[Termination "subham777 won by resignation"]

1. Nf3 {[%clk 0:03:00.9]} 1... d5 {[%clk 0:02:57.4]} 2. d4 {[%clk 0:03:01]} 2...
Nf6 {[%clk 0:02:57.3]} 3. c4 {[%clk 0:02:59.7]} 3... e6 {[%clk 0:02:57.8]} 4.
Nc3 {[%clk 0:02:59.4]} 4... Be7 {[%clk 0:02:57.1]} 5. Bg5 {[%clk 0:02:59.4]}
5... O-O {[%clk 0:02:56.6]} 6. e3 {[%clk 0:02:59.2]} 6... Ne4 {[%clk 0:02:56.7]}
7. Bxe7 {[%clk 0:02:53.4]} 7... Qxe7 {[%clk 0:02:57.6]} 8. Bd3 {[%clk
0:02:47.6]} 8... f5 {[%clk 0:02:55.9]} 9. cxd5 {[%clk 0:02:47.2]} 9... Nxc3
{[%clk 0:02:55.1]} 10. bxc3 {[%clk 0:02:48.1]} 10... exd5 {[%clk 0:02:55.4]} 11.
O-O {[%clk 0:02:47.8]} 11... c6 {[%clk 0:02:55.9]} 12. Ne5 {[%clk 0:02:46.6]}
12... Nd7 {[%clk 0:02:55.5]} 13. f4 {[%clk 0:02:46.8]} 13... Nf6 {[%clk
0:02:55.6]} 14. a4 {[%clk 0:02:29.6]} 14... a5 {[%clk 0:02:53.1]} 15. Qb3 {[%clk
0:02:25.9]} 15... Ng4 {[%clk 0:02:44.5]} 16. Rae1 {[%clk 0:02:09.9]} 16... Rf6
{[%clk 0:02:33.5]} 17. h3 {[%clk 0:02:09.5]} 17... Nxe5 {[%clk 0:02:15.6]} 18.
fxe5 {[%clk 0:02:08.3]} 18... Rf8 {[%clk 0:02:12.9]} 19. Rf2 {[%clk 0:01:51.1]}
19... Qg5 {[%clk 0:02:09.6]} 20. Rf4 {[%clk 0:01:44.7]} 20... Qg3 {[%clk
0:02:06.1]} 21. Qd1 {[%clk 0:01:44.3]} 21... g5 {[%clk 0:02:01.1]} 22. Rf3
{[%clk 0:01:38.2]} 22... Qh4 {[%clk 0:01:59.1]} 23. Ref1 {[%clk 0:01:38.5]}
23... f4 {[%clk 0:01:58.5]} 24. exf4 {[%clk 0:01:33.9]} 24... g4 {[%clk
0:01:46.9]} 25. g3 {[%clk 0:01:30.4]} 25... Qxh3 {[%clk 0:01:41]} 26. Re3 {[%clk
0:01:29.9]} 26... Bf5 {[%clk 0:01:33]} 27. Rf2 {[%clk 0:01:29.8]} 27... Qh5
{[%clk 0:01:22.8]} 28. Rh2 {[%clk 0:01:26]} 28... Qg6 {[%clk 0:01:21.2]} 29. Rh4
{[%clk 0:01:21.3]} 29... h5 {[%clk 0:01:18.6]} 30. Rh2 {[%clk 0:01:07]} 30...
Kg7 {[%clk 0:01:15.2]} 31. Qb1 {[%clk 0:00:56.7]} 31... Bxd3 {[%clk 0:01:11.2]}
32. Qxd3 {[%clk 0:00:55]} 32... Qxd3 {[%clk 0:00:55.5]} 33. Rxd3 {[%clk
0:00:55.9]} 33... Kg6 {[%clk 0:00:56]} 34. Rb2 {[%clk 0:00:53.5]} 34... Rf7
{[%clk 0:00:53.6]} 35. Re3 {[%clk 0:00:47.7]} 35... Re8 {[%clk 0:00:50.5]} 36.
Kg2 {[%clk 0:00:34.5]} 36... Kf5 {[%clk 0:00:50.6]} 37. Rb1 {[%clk 0:00:33.4]}
37... Rb8 {[%clk 0:00:44.5]} 38. Rh1 {[%clk 0:00:29.6]} 38... Rh7 {[%clk
0:00:27.3]} 39. e6 {[%clk 0:00:28.5]} 39... Re8 {[%clk 0:00:25.4]} 40. Re5+
{[%clk 0:00:28.4]} 40... Kg6 {[%clk 0:00:25.9]} 41. Rg5+ {[%clk 0:00:16.9]}
41... Kf6 {[%clk 0:00:25.8]} 42. Rgxh5 {[%clk 0:00:16.8]} 42... Rxh5 {[%clk
0:00:26.4]} 43. Rxh5 {[%clk 0:00:17.7]} 43... Rxe6 {[%clk 0:00:27]} 44. Rh7
{[%clk 0:00:14.1]} 44... Re2+ {[%clk 0:00:20.6]} 45. Kf1 {[%clk 0:00:13.6]}
45... Rb2 {[%clk 0:00:21.2]} 46. Re7 {[%clk 0:00:09.4]} 46... Kxe7 {[%clk
0:00:20.8]} 0-1

[Event "Late-Titled-Tuesday-Blitz-March-19-2024"]
[Site "Chess.com"]
[Date "2024.03.19"]
[Round "5"]
[White "RianKapriaga"]
[Black "kikoveiga"]
[Result "1-0"]
[WhiteElo "2364"]
[BlackElo "2512"]
[TimeControl "180+1"]
[EndTime "14:55:25 PDT"]
[Termination "RianKapriaga won by checkmate"]

1. d4 {[%clk 0:03:00.9]} 1... Nf6 {[%clk 0:03:00.1]} 2. Nf3 {[%clk 0:03:00.7]}
2... g6 {[%clk 0:02:59.6]} 3. c4 {[%clk 0:02:58.2]} 3... Bg7 {[%clk 0:03:00.1]}
4. Nc3 {[%clk 0:02:58.7]} 4... O-O {[%clk 0:03:00.2]} 5. Bg5 {[%clk 0:02:59.2]}
5... h6 {[%clk 0:02:59.3]} 6. Bh4 {[%clk 0:02:58.8]} 6... d6 {[%clk 0:02:59.3]}
7. e3 {[%clk 0:02:59]} 7... Nbd7 {[%clk 0:02:55.9]} 8. Be2 {[%clk 0:02:58.6]}
8... c5 {[%clk 0:02:56.2]} 9. d5 {[%clk 0:02:57]} 9... Qa5 {[%clk 0:02:33.1]}
10. O-O {[%clk 0:02:55.6]} 10... a6 {[%clk 0:02:31.2]} 11. a4 {[%clk 0:02:55.1]}
11... g5 {[%clk 0:02:21.2]} 12. Bg3 {[%clk 0:02:53.6]} 12... Nh5 {[%clk
0:02:19.4]} 13. Rc1 {[%clk 0:02:27.1]} 13... Nxg3 {[%clk 0:02:19.4]} 14. hxg3
{[%clk 0:02:26.3]} 14... Rb8 {[%clk 0:02:16.8]} 15. Bd3 {[%clk 0:02:16.1]} 15...
Qb4 {[%clk 0:02:04.5]} 16. Qe2 {[%clk 0:02:07.1]} 16... Ne5 {[%clk 0:02:02.9]}
17. Nxe5 {[%clk 0:02:05.3]} 17... Bxe5 {[%clk 0:02:02.6]} 18. f4 {[%clk
0:01:59.5]} 18... gxf4 {[%clk 0:01:51.8]} 19. gxf4 {[%clk 0:02:00.4]} 19... Bg7
{[%clk 0:01:38.6]} 20. Rc2 {[%clk 0:01:44.5]} 20... Kh8 {[%clk 0:01:29]} 21. Qh5
{[%clk 0:01:41.8]} 21... f5 {[%clk 0:01:23.1]} 22. Rf3 {[%clk 0:01:30.9]} 22...
Bd7 {[%clk 0:01:22.5]} 23. Rh3 {[%clk 0:01:21.9]} 23... Be8 {[%clk 0:01:20.2]}
24. Qh4 {[%clk 0:01:16.1]} 24... Rf6 {[%clk 0:01:16.2]} 25. g4 {[%clk
0:01:06.1]} 25... Bxa4 {[%clk 0:01:10.6]} 26. Nxa4 {[%clk 0:00:57.5]} 26... Qxa4
{[%clk 0:01:10.6]} 27. g5 {[%clk 0:00:44.3]} 27... Rff8 {[%clk 0:00:36.3]} 28.
Rg2 {[%clk 0:00:16.5]} 28... Qd1+ {[%clk 0:00:35.8]} 29. Bf1 {[%clk 0:00:15.5]}
29... Qc1 {[%clk 0:00:14.7]} 30. Qh5 {[%clk 0:00:10.4]} 30... b5 {[%clk
0:00:13.5]} 31. Qg6 {[%clk 0:00:08.8]} 31... bxc4 {[%clk 0:00:06]} 32. Rxh6+
{[%clk 0:00:06.8]} 32... Bxh6 {[%clk 0:00:05.4]} 33. Qxh6+ {[%clk 0:00:05.6]}
33... Kg8 {[%clk 0:00:05.1]} 34. g6 {[%clk 0:00:05.7]} 34... Qxb2 {[%clk
0:00:02.2]} 35. Qh7# {[%clk 0:00:05.1]} 1-0

[Event "Late-Titled-Tuesday-Blitz-March-19-2024"]
[Site "Chess.com"]
[Date "2024.03.19"]
[Round "5"]
[White "mac0504"]
[Black "Sanan_Sjugirov"]
[Result "0-1"]
[WhiteElo "2714"]
[BlackElo "3002"]
[TimeControl "180+1"]
[EndTime "14:55:26 PDT"]
[Termination "Sanan_Sjugirov won on time"]

1. c4 {[%clk 0:02:55.9]} 1... Nf6 {[%clk 0:02:59.3]} 2. Nc3 {[%clk 0:02:56]}
2... g6 {[%clk 0:03:00]} 3. e4 {[%clk 0:02:56.4]} 3... d6 {[%clk 0:03:00.7]} 4.
d4 {[%clk 0:02:56.7]} 4... Bg7 {[%clk 0:03:01.4]} 5. Be2 {[%clk 0:02:57.2]} 5...
O-O {[%clk 0:03:01.8]} 6. Be3 {[%clk 0:02:57.5]} 6... Nc6 {[%clk 0:02:58.7]} 7.
d5 {[%clk 0:02:38.8]} 7... Ne5 {[%clk 0:02:58.4]} 8. h3 {[%clk 0:02:34.1]} 8...
c6 {[%clk 0:02:56.4]} 9. Nf3 {[%clk 0:02:33.2]} 9... Nxf3+ {[%clk 0:02:51.7]}
10. Bxf3 {[%clk 0:02:33.4]} 10... Bd7 {[%clk 0:02:39.1]} 11. O-O {[%clk
0:02:32.7]} 11... a6 {[%clk 0:02:39.5]} 12. Rc1 {[%clk 0:02:30]} 12... Rc8
{[%clk 0:02:37.2]} 13. Na4 {[%clk 0:02:12.4]} 13... c5 {[%clk 0:02:20.5]} 14. e5
{[%clk 0:02:11.5]} 14... Bxa4 {[%clk 0:02:14.4]} 15. Qxa4 {[%clk 0:02:09.4]}
15... dxe5 {[%clk 0:02:15]} 16. Rfd1 {[%clk 0:01:56.2]} 16... e4 {[%clk
0:02:14.7]} 17. Be2 {[%clk 0:01:55.4]} 17... Nd7 {[%clk 0:02:09.9]} 18. d6
{[%clk 0:01:50]} 18... e6 {[%clk 0:02:08.2]} 19. Bg5 {[%clk 0:01:37.3]} 19... f6
{[%clk 0:02:02.6]} 20. Bd2 {[%clk 0:01:19.2]} 20... Rc6 {[%clk 0:01:58]} 21. Ba5
{[%clk 0:01:17.1]} 21... Qe8 {[%clk 0:01:55.1]} 22. b4 {[%clk 0:01:02.9]} 22...
cxb4 {[%clk 0:01:54.2]} 23. Bxb4 {[%clk 0:01:03.5]} 23... f5 {[%clk 0:01:53.6]}
24. c5 {[%clk 0:01:03.3]} 24... Qf7 {[%clk 0:01:43.7]} 25. Ba3 {[%clk
0:00:56.3]} 25... Bh6 {[%clk 0:01:22.6]} 26. Rb1 {[%clk 0:00:44.6]} 26... Nxc5
{[%clk 0:01:07.7]} 27. Bxc5 {[%clk 0:00:45]} 27... Rxc5 {[%clk 0:01:08.6]} 28.
d7 {[%clk 0:00:45.8]} 28... Rd8 {[%clk 0:01:07.5]} 29. Rxb7 {[%clk 0:00:45.7]}
29... Qe7 {[%clk 0:00:47.1]} 30. Qxa6 {[%clk 0:00:41.1]} 30... e3 {[%clk
0:00:28.5]} 31. fxe3 {[%clk 0:00:12.3]} 31... Bxe3+ {[%clk 0:00:28.1]} 32. Kh1
{[%clk 0:00:12.9]} 32... Kg7 {[%clk 0:00:13.2]} 33. Bf3 {[%clk 0:00:05.4]} 33...
Bf4 {[%clk 0:00:11.1]} 34. Qb6 {[%clk 0:00:03]} 34... Be5 {[%clk 0:00:07.8]} 35.
Re1 {[%clk 0:00:02.3]} 35... Kf6 {[%clk 0:00:05.6]} 36. a4 {[%clk 0:00:01.6]}
36... g5 {[%clk 0:00:05.3]} 37. a5 {[%clk 0:00:01.9]} 37... g4 {[%clk
0:00:06.1]} 38. Bd1 {[%clk 0:00:01.7]} 38... gxh3 {[%clk 0:00:06.1]} 39. gxh3
{[%clk 0:00:02.4]} 39... Rc3 {[%clk 0:00:06.4]} 0-1

[Event "Late-Titled-Tuesday-Blitz-March-19-2024"]
[Site "Chess.com"]
[Date "2024.03.19"]
[Round "5"]
[White "albi1999"]
[Black "Byniolus"]
[Result "1-0"]
[WhiteElo "2605"]
[BlackElo "2780"]
[TimeControl "180+1"]
[EndTime "14:55:26 PDT"]
[Termination "albi1999 won by resignation"]

1. Nf3 {[%clk 0:03:00.9]} 1... d5 {[%clk 0:03:00.1]} 2. e3 {[%clk 0:02:59.4]}
2... Nf6 {[%clk 0:02:59.5]} 3. c4 {[%clk 0:02:59.8]} 3... c6 {[%clk 0:03:00]} 4.
Nc3 {[%clk 0:02:58.1]} 4... Bg4 {[%clk 0:03:00.1]} 5. h3 {[%clk 0:02:57.5]} 5...
Bxf3 {[%clk 0:02:58.3]} 6. Qxf3 {[%clk 0:02:57.1]} 6... e6 {[%clk 0:02:58.8]} 7.
b3 {[%clk 0:02:55.1]} 7... Be7 {[%clk 0:02:54.2]} 8. Bb2 {[%clk 0:02:55]} 8...
O-O {[%clk 0:02:54.5]} 9. d4 {[%clk 0:02:48.6]} 9... Bb4 {[%clk 0:02:50.4]} 10.
a3 {[%clk 0:02:41]} 10... Bxc3+ {[%clk 0:02:48]} 11. Bxc3 {[%clk 0:02:37.8]}
11... Ne4 {[%clk 0:02:48.9]} 12. Bb2 {[%clk 0:02:37.4]} 12... f5 {[%clk
0:02:37.2]} 13. Bd3 {[%clk 0:02:36.1]} 13... Nd7 {[%clk 0:02:29.1]} 14. Qd1
{[%clk 0:02:29.9]} 14... a6 {[%clk 0:02:24.3]} 15. O-O {[%clk 0:02:27.9]} 15...
b5 {[%clk 0:02:18.7]} 16. f3 {[%clk 0:02:18.4]} 16... Nef6 {[%clk 0:02:10.1]}
17. Bc3 {[%clk 0:02:09.8]} 17... Re8 {[%clk 0:01:44.6]} 18. a4 {[%clk
0:02:02.2]} 18... bxc4 {[%clk 0:01:35.3]} 19. bxc4 {[%clk 0:02:00.8]} 19... a5
{[%clk 0:01:36.2]} 20. c5 {[%clk 0:01:44.2]} 20... Qc7 {[%clk 0:01:28]} 21. Qd2
{[%clk 0:01:42]} 21... g6 {[%clk 0:01:19.1]} 22. Rab1 {[%clk 0:01:38]} 22... e5
{[%clk 0:01:17.7]} 23. dxe5 {[%clk 0:01:34]} 23... Nxe5 {[%clk 0:01:16.3]} 24.
Be2 {[%clk 0:01:27.9]} 24... Ned7 {[%clk 0:01:05]} 25. Bd4 {[%clk 0:01:18.8]}
25... Kf7 {[%clk 0:00:59.6]} 26. Rb3 {[%clk 0:01:12.8]} 26... Reb8 {[%clk
0:00:55.5]} 27. Rfb1 {[%clk 0:01:11.9]} 27... Rxb3 {[%clk 0:00:55.4]} 28. Rxb3
{[%clk 0:01:12.8]} 28... Nf8 {[%clk 0:00:52.1]} 29. Qb2 {[%clk 0:01:06.7]} 29...
N6d7 {[%clk 0:00:47.1]} 30. Rb7 {[%clk 0:01:04.8]} 30... Qc8 {[%clk 0:00:42.2]}
31. Be5 {[%clk 0:00:46]} 31... Ne6 {[%clk 0:00:29.7]} 32. Bd6 {[%clk 0:00:46.3]}
32... Kg8 {[%clk 0:00:28.3]} 33. e4 {[%clk 0:00:44]} 33... Nd4 {[%clk
0:00:07.7]} 34. Rc7 {[%clk 0:00:19.6]} 34... Nxe2+ {[%clk 0:00:07]} 35. Qxe2
{[%clk 0:00:20.5]} 35... Qe8 {[%clk 0:00:06.3]} 36. e5 {[%clk 0:00:15.1]} 36...
Nf8 {[%clk 0:00:05.1]} 37. Re7 {[%clk 0:00:10.2]} 37... Qc8 {[%clk 0:00:03.5]}
38. e6 {[%clk 0:00:10.3]} 38... Ra7 {[%clk 0:00:02.1]} 39. Rxa7 {[%clk
0:00:09.2]} 39... Nxe6 {[%clk 0:00:02.8]} 40. Qe5 {[%clk 0:00:07.5]} 1-0

[Event "Late-Titled-Tuesday-Blitz-March-19-2024"]
[Site "Chess.com"]
[Date "2024.03.19"]
[Round "5"]
[White "HandKnit"]
[Black "Yurovskykh_Oleksandr"]
[Result "1-0"]
[WhiteElo "2490"]
[BlackElo "2589"]
[TimeControl "180+1"]
[EndTime "14:55:26 PDT"]
[Termination "HandKnit won on time"]

1. c4 {[%clk 0:03:00.9]} 1... e6 {[%clk 0:02:52.5]} 2. Nc3 {[%clk 0:03:00.6]}
2... d5 {[%clk 0:02:51.6]} 3. cxd5 {[%clk 0:03:01.5]} 3... exd5 {[%clk
0:02:51.8]} 4. d4 {[%clk 0:03:02.2]} 4... c6 {[%clk 0:02:52.3]} 5. Bf4 {[%clk
0:03:01.2]} 5... Bf5 {[%clk 0:02:52.5]} 6. e3 {[%clk 0:02:56]} 6... Nf6 {[%clk
0:02:42.7]} 7. Nge2 {[%clk 0:02:55.6]} 7... Bd6 {[%clk 0:02:36.7]} 8. Bxd6
{[%clk 0:02:54.4]} 8... Qxd6 {[%clk 0:02:37.6]} 9. Ng3 {[%clk 0:02:54.1]} 9...
Bg6 {[%clk 0:02:36.1]} 10. Bd3 {[%clk 0:02:53.5]} 10... Nbd7 {[%clk 0:02:34.7]}
11. O-O {[%clk 0:02:52.3]} 11... O-O {[%clk 0:02:33.3]} 12. Rb1 {[%clk
0:02:51.4]} 12... a5 {[%clk 0:02:32.8]} 13. Qc2 {[%clk 0:02:45.1]} 13... Nb6
{[%clk 0:02:26.4]} 14. Nf5 {[%clk 0:02:31.7]} 14... Bxf5 {[%clk 0:02:25.9]} 15.
Bxf5 {[%clk 0:02:32.6]} 15... g6 {[%clk 0:02:26.3]} 16. Bd3 {[%clk 0:02:32.1]}
16... Rfe8 {[%clk 0:02:23.9]} 17. Rfc1 {[%clk 0:02:30.1]} 17... Qe7 {[%clk
0:02:23.5]} 18. a3 {[%clk 0:02:26.2]} 18... Nc8 {[%clk 0:01:43.8]} 19. Ne2
{[%clk 0:02:14.9]} 19... Nd6 {[%clk 0:01:31.2]} 20. b4 {[%clk 0:02:13]} 20...
axb4 {[%clk 0:01:30.8]} 21. axb4 {[%clk 0:02:13.9]} 21... Rec8 {[%clk
0:01:24.9]} 22. Ng3 {[%clk 0:02:03.5]} 22... b5 {[%clk 0:01:21.1]} 23. Ra1
{[%clk 0:01:57.9]} 23... Nc4 {[%clk 0:01:19.8]} 24. Qb3 {[%clk 0:01:55.6]} 24...
Qb7 {[%clk 0:01:15.4]} 25. e4 {[%clk 0:01:48.5]} 25... Rxa1 {[%clk 0:01:08]} 26.
Rxa1 {[%clk 0:01:48.3]} 26... Ra8 {[%clk 0:01:08.7]} 27. Rxa8+ {[%clk
0:01:47.6]} 27... Qxa8 {[%clk 0:01:09.6]} 28. h3 {[%clk 0:01:45.9]} 28... Qa1+
{[%clk 0:01:08.4]} 29. Kh2 {[%clk 0:01:45.4]} 29... Qxd4 {[%clk 0:01:08.7]} 30.
exd5 {[%clk 0:01:44.6]} 30... cxd5 {[%clk 0:00:53.5]} 31. Qc2 {[%clk 0:01:39.6]}
31... Kg7 {[%clk 0:00:43.2]} 32. Kg1 {[%clk 0:01:32.8]} 32... Qa1+ {[%clk
0:00:34.4]} 33. Kh2 {[%clk 0:01:32.5]} 33... Qe1 {[%clk 0:00:34.5]} 34. Ne2
{[%clk 0:01:17.2]} 34... Qxf2 {[%clk 0:00:26.1]} 35. Nc3 {[%clk 0:01:16.3]}
35... Qf4+ {[%clk 0:00:19.4]} 36. Kh1 {[%clk 0:01:12.3]} 36... Ne3 {[%clk
0:00:19.5]} 37. Qb2 {[%clk 0:01:01.3]} 37... Nc4 {[%clk 0:00:18.3]} 38. Qc2
{[%clk 0:00:57.4]} 38... Ne5 {[%clk 0:00:16.2]} 39. Bxb5 {[%clk 0:00:42]} 39...
Qxb4 {[%clk 0:00:15.7]} 40. Bf1 {[%clk 0:00:38.5]} 40... Qf4 {[%clk 0:00:15.4]}
41. Qd1 {[%clk 0:00:31.4]} 41... d4 {[%clk 0:00:03.5]} 42. Ne2 {[%clk
0:00:30.1]} 42... Qf2 {[%clk 0:00:03.6]} 43. Nxd4 {[%clk 0:00:25.9]} 43... Ne4
{[%clk 0:00:03.6]} 44. Bb5 {[%clk 0:00:18.6]} 44... Ng3+ {[%clk 0:00:03.2]} 45.
Kh2 {[%clk 0:00:18.5]} 1-0